fUSD/lending_fUSD_20250616
["ID","MTS","AMOUNT","RATE_DAILY","PERIOD"]
[366201141,1750114250148,-729.0,0.0001674,2]
[366201142,1750114250159,-490.0,0.0001674,2]
[366201143,1750114250169,-490.0,0.0001674,2]
[366201144,1750114250179,-490.0,0.0001674,2]
[366201145,1750114250189,-490.0,0.0001674,2]
[366201146,1750114250200,-4087.42,0.0001674,2]
[366201147,1750114250212,-490.0,0.0001674,2]
[366201148,1750114250221,-490.0,0.0001674,2]
[366201149,1750114250232,-729.34,0.0001674,2]
[366201150,1750114250241,-828.39,0.0001674,2]
[366201151,1750114250251,-490.0,0.0001674,2]
[366201152,1750114250261,-736.8,0.0001674,2]
[366201153,1750114250271,-490.0,0.0001674,2]
[366201154,1750114250281,-495.05,0.0001674,2]
[366201155,1750114250290,-490.0,0.00016741,2]
[366201156,1750114250300,-490.0,0.00016741,2]
[366201157,1750114250310,-490.0,0.00016741,2]
[366201158,1750114250320,-535.17,0.00016741,2]
[366201159,1750114250330,-490.0,0.00016741,2]
[366201160,1750114250340,-490.0,0.00016741,2]
[366201161,1750114250353,-490.0,0.00016741,2]
[366201162,1750114250363,-490.0,0.00016741,2]
[366201163,1750114250373,-490.0,0.00016741,2]
[366201164,1750114250383,-490.0,0.00016741,2]
[366201165,1750114250393,-490.0,0.00016741,2]
[366201166,1750114250403,-490.0,0.00016741,2]
[366201167,1750114250412,-490.0,0.00016741,2]
[366201168,1750114250423,-490.0,0.00016741,2]
[366201169,1750114250433,-490.0,0.00016741,2]
[366201170,1750114250443,-490.0,0.00016741,2]
[366201171,1750114250453,-490.0,0.00016741,2]
[366201172,1750114250465,-490.0,0.00016741,2]
[366201173,1750114250475,-490.0,0.00016741,2]
[366201174,1750114250486,-490.0,0.00016741,2]
[366201175,1750114250495,-490.0,0.00016741,2]
[366201176,1750114250505,-158.14369422,0.00016758,2]
[366201177,1750114250515,-809.95748097,0.00016762,2]
[366201178,1750114250525,-156.55935743,0.00016785,2]
[366201179,1750114250534,-809.95748097,0.00016797,2]
[366201180,1750114250544,-1876.6193735,0.000168,2]
[366201181,1750114250554,-809.95748097,0.00016831,2]
[366201182,1750114250565,-156.55935743,0.00016843,2]
[366201183,1750114250574,-400.0,0.00016856,2]
[366201184,1750114250584,-2000.0,0.00016863,2]
[366201185,1750114250595,-809.95748097,0.00016866,2]
[366201186,1750114250604,-868.48676193,0.00016866,2]
[366201187,1750114250615,-150.0,0.00016899,2]
[366201188,1750114250625,-150.0,0.00016899,2]
[366201189,1750114250634,-150.0,0.00016899,2]
[366201190,1750114250644,-150.0,0.00016899,2]
[366201191,1750114250654,-150.0,0.00016899,2]
[366201192,1750114250663,-150.0,0.00016899,2]
[366201193,1750114250673,-150.0,0.00016899,2]
[366201194,1750114250683,-150.0,0.00016899,2]
[366201195,1750114250693,-150.0,0.00016899,2]
[366201196,1750114250703,-255.73967072,0.000169,2]
[366201197,1750114250715,-1040.80301374,0.000169,2]
[366201198,1750114250725,-158.14369422,0.000169,2]
[366201199,1750114250734,-159.48396607,0.000169,2]
[366201200,1750114250744,-809.95748097,0.000169,2]
[366201201,1750114250754,-156.55935743,0.000169,2]
[366201202,1750114250764,-2308.57475954,0.000169,2]
[366201203,1750114250774,-1876.6193735,0.000169,2]
[366201204,1750114250784,-490.0,0.00016903,2]
[366201205,1750114250794,-490.0,0.00016903,2]
[366201206,1750114250804,-490.0,0.00016903,2]
[366201207,1750114250814,-490.0,0.00016903,2]
[366201208,1750114250824,-981.1,0.00016903,2]
[366201209,1750114250834,-490.0,0.00016903,2]
[366201210,1750114250844,-686.76,0.00016903,2]
[366201211,1750114250854,-1369.72,0.00016903,2]
[366201212,1750114250864,-291.07266861,0.00016903,2]
[366201213,1750114250873,-490.0,0.00016903,2]
[366201214,1750114250884,-1538.06,0.00016903,2]
[366201215,1750114250894,-490.0,0.00016903,2]
[366201216,1750114250905,-490.0,0.00016903,2]
[366201217,1750114250914,-490.0,0.00016903,2]
[366201218,1750114250924,-490.0,0.00016903,2]
[366201219,1750114250934,-490.0,0.00016903,2]
[366201220,1750114250944,-996.47,0.00016903,2]
[366201221,1750114250954,-490.0,0.00016903,2]
[366201222,1750114250966,-490.0,0.00016903,2]
[366201223,1750114250975,-1278.98,0.00016903,2]
[366201224,1750114250985,-490.0,0.00016903,2]
[366201225,1750114250995,-471.29993046,0.00016903,2]
[366201226,1750114251006,-490.0,0.00016903,2]
[366201227,1750114251015,-490.0,0.00016903,2]
[366201228,1750114251026,-490.0,0.00016904,2]
[366201229,1750114251036,-490.0,0.00016904,2]
[366201230,1750114251046,-490.0,0.00016904,2]
[366201231,1750114251056,-490.0,0.00016904,2]
[366201232,1750114251067,-490.0,0.00016904,2]
[366201233,1750114251077,-193.28583126,0.00016904,2]
[366201234,1750114251087,-490.0,0.00016904,2]
[366201235,1750114251096,-490.0,0.00016904,2]
[366201236,1750114251106,-490.0,0.00016904,2]
[366201237,1750114251115,-490.0,0.00016904,2]
[366201238,1750114251125,-490.0,0.00016904,2]
[366201239,1750114251135,-490.0,0.00016904,2]
[366201240,1750114251145,-490.0,0.00016904,2]
[366201241,1750114251155,-490.0,0.00016904,2]
[366201242,1750114251164,-490.0,0.00016904,2]
[366201243,1750114251174,-490.0,0.00016904,2]
[366201244,1750114251184,-490.0,0.00016904,2]
[366201245,1750114251193,-490.0,0.00016904,2]
[366201246,1750114251203,-520.81,0.00016904,2]
[366201247,1750114251215,-490.0,0.00016904,2]
[366201248,1750114251225,-490.0,0.00016904,2]
[366201249,1750114251234,-490.0,0.00016904,2]
[366201250,1750114251244,-490.0,0.00016904,2]
[366201251,1750114251254,-490.0,0.00016904,2]
[366201252,1750114251264,-490.0,0.00016904,2]
[366201253,1750114251274,-490.0,0.00016904,2]
[366201254,1750114251284,-517.07,0.00016904,2]
[366201255,1750114251293,-490.0,0.00016904,2]
[366201256,1750114251303,-490.0,0.00016904,2]
[366201257,1750114251313,-490.0,0.00016904,2]
[366201258,1750114251322,-1687.37,0.00016904,2]
[366201259,1750114251332,-4478.01,0.00016904,2]
[366201260,1750114251342,-490.0,0.00016904,2]
[366201261,1750114251354,-659.58,0.00016904,2]
[366201262,1750114251536,-490.0,0.00016904,2]
[366201263,1750114251599,-490.0,0.00016904,2]
[366201264,1750114251609,-1699.08,0.00016904,2]
[366201265,1750114251619,-692.68,0.00016904,2]
[366201266,1750114251628,-490.0,0.00016904,2]
[366201267,1750114251638,-745.97,0.00016904,2]
[366201268,1750114251647,-490.0,0.00016904,2]
[366201269,1750114251657,-645.37,0.00016904,2]
[366201270,1750114251667,-490.0,0.00016904,2]
[366201271,1750114251677,-1307.87,0.00016904,2]
[366201272,1750114251686,-490.0,0.00016904,2]
[366201273,1750114251696,-490.0,0.00016904,2]
[366201274,1750114251706,-490.0,0.00016904,2]
[366201275,1750114251719,-545.55,0.00016904,2]
[366201276,1750114251728,-787.51,0.00016904,2]
[366201277,1750114251738,-490.0,0.00016904,2]
[366201278,1750114251747,-490.0,0.00016904,2]
[366201279,1750114251756,-1361.65,0.00016904,2]
[366201280,1750114251766,-490.0,0.00016904,2]
[366201281,1750114251775,-662.96,0.00016904,2]
[366201282,1750114251784,-589.78,0.00016904,2]
[366201283,1750114251794,-490.0,0.00016904,2]
[366201284,1750114251804,-738.84,0.00016904,2]
[366201285,1750114251813,-551.73,0.00016904,2]
[366201286,1750114251823,-1771.84,0.00016904,2]
[366201287,1750114251833,-1155.41293549,0.00016904,2]
[366201288,1750114251850,-92.48706451,0.00016904,2]
[366201289,1750114251860,-490.0,0.00016904,2]
[366201290,1750114251869,-67.51293549,0.00016904,2]
[366201291,1750114251887,-490.0,0.00016247,2]
[366201292,1750114251897,-1598.44706451,0.00016904,2]
[366201293,1750114251907,-490.0,0.00016904,2]
[366201294,1750114251917,-584.23,0.00016904,2]
[366201295,1750114251927,-1064.35,0.00016904,2]
[366201296,1750114251936,-490.0,0.00016904,2]
[366201297,1750114251946,-490.0,0.00016904,2]
[366201298,1750114251956,-2551.02,0.00016904,2]
[366201299,1750114251967,-818.48,0.00016904,2]
[366201300,1750114251977,-490.0,0.00016904,2]
[366201301,1750114251988,-224.98585452,0.00016904,2]
[366201302,1750114252005,-490.0,0.00016411,2]
[366201303,1750114252016,-646.83414548,0.00016904,2]
[366201304,1750114252025,-215.41585452,0.00016904,2]
[366201305,1750114252038,-274.58414548,0.00016904,2]
[366201306,1750114252048,-641.59,0.00016904,2]
[366201307,1750114252058,-490.0,0.00016904,2]
[366201308,1750114252068,-490.0,0.00016904,2]
[366201309,1750114252077,-490.0,0.00016904,2]
[366201310,1750114252087,-490.0,0.00016904,2]
[366201311,1750114252096,-3775.8,0.00016904,2]
[366201312,1750114252106,-490.0,0.00016904,2]
[366201313,1750114252116,-490.0,0.00016904,2]
[366201314,1750114252126,-492.29,0.00016904,2]
[366201315,1750114252136,-490.0,0.00016904,2]
[366201316,1750114252145,-490.0,0.00016904,2]
[366201317,1750114252155,-490.0,0.00016904,2]
[366201318,1750114252164,-490.0,0.00016904,2]
[366201319,1750114252174,-490.0,0.00016904,2]
[366201320,1750114252184,-490.0,0.00016904,2]
[366201321,1750114252194,-490.0,0.00016904,2]
[366201322,1750114252204,-967.08,0.00016904,2]
[366201323,1750114252215,-1230.81,0.00016904,2]
[366201324,1750114252225,-598.95,0.00016904,2]
[366201325,1750114252236,-490.0,0.00016904,2]
[366201326,1750114252246,-490.0,0.00016904,2]
[366201327,1750114252256,-836.23,0.00016904,2]
[366201328,1750114252266,-579.13,0.00016904,2]
[366201329,1750114252276,-490.0,0.00016904,2]
[366201330,1750114252286,-294.56526773,0.00016904,2]
[366201331,1750114252296,-490.0,0.00016904,2]
[366201332,1750114252306,-729.0,0.00016904,2]
[366201333,1750114252316,-490.0,0.00016904,2]
[366201334,1750114252326,-490.0,0.00016904,2]
[366201335,1750114252340,-490.0,0.00016904,2]
[366201336,1750114252350,-490.0,0.00016904,2]
[366201337,1750114252359,-4087.42,0.00016904,2]
[366201338,1750114252369,-490.0,0.00016904,2]
[366201339,1750114252381,-490.0,0.00016904,2]
[366201340,1750114252391,-729.34,0.00016904,2]
[366201341,1750114252401,-828.39,0.00016904,2]
[366201342,1750114252411,-490.0,0.00016904,2]
[366201343,1750114252422,-736.8,0.00016904,2]
[366201344,1750114252434,-490.0,0.00016904,2]
[366201345,1750114252444,-495.05,0.00016904,2]
[366201346,1750114252454,-535.41179963,0.00016905,2]
[366201347,1750114252466,-490.0,0.00016905,2]
[366201348,1750114252476,-490.0,0.00016905,2]
[366201349,1750114252486,-535.17,0.00016905,2]
[366201350,1750114252497,-490.0,0.00016905,2]
[366201351,1750114252507,-490.0,0.00016905,2]
[366201352,1750114252518,-490.0,0.00016905,2]
[366201353,1750114252528,-490.0,0.00016905,2]
[366201354,1750114252538,-490.0,0.00016905,2]
[366201355,1750114252548,-490.0,0.00016905,2]
[366201356,1750114252557,-490.0,0.00016905,2]
[366201357,1750114252567,-490.0,0.00016905,2]
[366201358,1750114252578,-490.0,0.00016905,2]
[366201359,1750114252588,-490.0,0.00016905,2]
[366201360,1750114252598,-490.0,0.00016905,2]
[366201361,1750114252608,-490.0,0.00016905,2]
[366201362,1750114252618,-490.0,0.00016905,2]
[366201363,1750114252628,-490.0,0.00016905,2]
[366201364,1750114252639,-560.86665112,0.00016905,2]
[366201365,1750114252649,-399.43585504,0.00016905,2]
[366201366,1750114252659,-490.0,0.00016905,2]
[366201367,1750114252668,-150.0,0.00016926,2]
[366201368,1750114252678,-150.0,0.00016926,2]
[366201369,1750114252688,-150.0,0.00016926,2]
[366201370,1750114252698,-150.0,0.00016926,2]
[366201371,1750114252708,-150.0,0.00016926,2]
[366201372,1750114252721,-250.0,0.00016926,2]
[366201373,1750114252731,-150.0,0.00016926,2]
[366201374,1750114252741,-150.0,0.00016926,2]
[366201375,1750114252751,-285.97,0.00016937,2]
[366201376,1750114252760,-150.0,0.00016954,2]
[366201377,1750114252770,-150.0,0.00016954,2]
[366201378,1750114252779,-150.0,0.00016954,2]
[366201379,1750114252789,-150.0,0.00016954,2]
[366201380,1750114252798,-150.0,0.00016954,2]
[366201381,1750114252808,-150.0,0.00016954,2]
[366201382,1750114252818,-5375.0,0.00016959,2]
[366201383,1750114252828,-500.0,0.00016973,2]
[366201384,1750114252838,-467.7253048,0.00016973,2]
[366201385,1750114252848,-500.0,0.00016973,2]
[366201386,1750114252858,-500.0,0.00016973,2]
[366201387,1750114252868,-500.0,0.00016973,2]
[366201388,1750114252878,-500.0,0.00016973,2]
[366201389,1750114252888,-500.66842222,0.00016973,2]
[366201390,1750114252899,-501.41037233,0.00016973,2]
[366201391,1750114252910,-502.41540632,0.00016973,2]
[366201392,1750114252919,-500.0,0.00016973,2]
[366201393,1750114252929,-500.0,0.00016973,2]
[366201394,1750114252940,-500.0,0.00016973,2]
[366201395,1750114252950,-200.0,0.00016981,2]
[366201396,1750114252960,-150.0,0.00016981,2]
[366201397,1750114252972,-150.0,0.00016981,2]
[366201398,1750114252982,-150.0,0.00016981,2]
[366201399,1750114252992,-1010.78,0.00016985,2]
[366201400,1750114253002,-180.1,0.00016986,2]
[366201401,1750114253011,-499.58,0.00016999,2]
[366201402,1750114253021,-300.0,0.00016999,2]
[366201403,1750114253031,-300.0,0.00016999,2]
[366201404,1750114253041,-300.0,0.00016999,2]
[366201405,1750114253051,-300.0,0.00016999,2]
[366201406,1750114253061,-300.0,0.00016999,2]
[366201407,1750114253071,-994.71301072,0.00016999,2]
[366201408,1750114253264,-490.0,0.00016082,2]
[366201409,1750114253274,-490.0,0.00016247,2]
[366201410,1750114253286,-490.0,0.00016411,2]
[366201411,1750114253297,-490.0,0.00016575,2]
[366201412,1750114253309,-490.0,0.00016575,2]
[366201413,1750114253320,-155.0,0.00016584,2]
[366201414,1750114253332,-490.0,0.0001674,2]
[366201415,1750114253343,-490.0,0.0001674,2]
[366201416,1750114253357,-490.0,0.00016904,2]
[366201417,1750114253368,-490.0,0.00016904,2]
[366201418,1750114253378,-16.06698928,0.00016999,2]
[366201419,1750114253389,-1010.78,0.00016999,2]
[366201420,1750114253398,-1010.78,0.00016999,2]
[366201421,1750114253409,-1010.78,0.00016999,2]
[366201422,1750114253420,-1010.78,0.00016999,2]
[366201423,1750114253432,-798.59440691,0.00016999,2]
[366201424,1750114253450,-212.18559309,0.00016999,2]
[366201425,1750114253461,-1010.78,0.00016999,2]
[366201426,1750114253477,-1010.78,0.00016999,2]
[366201427,1750114253487,-1010.78,0.00016999,2]
[366201428,1750114253497,-1010.78,0.00016999,2]
[366201429,1750114253507,-1010.78,0.00016999,2]
[366201430,1750114253517,-1010.78,0.00016999,2]
[366201431,1750114253526,-1010.78,0.00016999,2]
[366201432,1750114253536,-1010.78,0.00016999,2]
[366201433,1750114253546,-1010.78,0.00016999,2]
[366201434,1750114253556,-1010.78,0.00016999,2]
[366201435,1750114253566,-1010.78,0.00016999,2]
[366201436,1750114253575,-1010.86312897,0.00016999,2]
[366201437,1750114253585,-166.36499488,0.00016999,2]
[366201438,1750114253595,-593.09526336,0.00016999,2]
[366201439,1750114253604,-221.87143625,0.00016999,2]
[366201440,1750114253614,-233.64935391,0.00016999,2]
[366201441,1750114253624,-478.44018502,0.00016999,2]
[366201442,1750114253634,-500.0,0.00016999,2]
[366201443,1750114253644,-500.0,0.00016999,2]
[366201444,1750114253653,-500.0,0.00016999,2]
[366201445,1750114253663,-500.0,0.00016999,2]
[366201446,1750114253673,-500.0,0.00016999,2]
[366201447,1750114253683,-281.18397731,0.00016999,2]
[366201448,1750114253692,-500.0,0.00016999,2]
[366201449,1750114253702,-346.85351915,0.00016999,2]
[366201450,1750114253711,-569.70767963,0.00016999,2]
[366201451,1750114253723,-335.38476712,0.00016999,2]
[366201452,1750114253733,-7543.9312578,0.00017,2]
[366201453,1750114253742,-15658.95734073,0.00017,2]
[366201454,1750114253755,-135862.5,0.00017,2]
[366201455,1750114253767,-66143.33266325,0.00017,2]
[366201456,1750114253778,-267.28894711,0.00017,2]
[366201457,1750114253794,-1165.58,0.00017,2]
[366201458,1750114253806,-950.40631157,0.00017,2]
[366201459,1750114253818,-255.1,0.00017,2]
[366201460,1750114253834,-12029.52950457,0.00017,2]
[366201461,1750114254203,-820.2695,0.00017,2]
[366201462,1750114254218,-21964.58091098,0.00017,2]
[366201463,1750114254230,-1484.57496522,0.00017,2]
[366201464,1750114254307,-1845.2000002,0.00017,2]
[366201465,1750114254333,-357.62915461,0.00015982,2]
[366201466,1750114254348,-142.37084539,0.00015982,2]
[366201467,1750114254358,-1308.66390361,0.00017,2]
[366201468,1750114254369,-545.152395,0.00017,2]
[366201469,1750114254380,-601.879,0.00017,2]
[366201470,1750114254887,-1600.0,0.00017,2]
[366201472,1750114285216,407.24,0.00013699,2]
[366201473,1750114352132,1000.0,0.00015333,2]
[366201474,1750114424464,150.0,0.00015268,7]
[366201475,1750114425566,248.0,0.00015,3]
[366201476,1750114476035,500.0,0.00015068,2]
[366201477,1750114521728,1203.45,0.00015263,2]
[366201478,1750114522037,1203.45,0.00015267,2]
[366201479,1750114522301,1203.45,0.00015271,2]
[366201480,1750114523143,1203.45,0.00015275,2]
[366201481,1750114523565,1203.45,0.00015279,2]
[366201482,1750114523949,1203.45,0.00015283,2]
[366201483,1750114524181,1203.45,0.00015287,2]
[366201484,1750114524384,1203.45,0.00015291,2]
[366201485,1750114524622,1203.45,0.00015295,2]
[366201486,1750114524837,1203.45,0.00015299,2]
[366201487,1750114525121,1203.45,0.00015303,2]
[366201488,1750114525328,1203.45,0.00015307,2]
[366201489,1750114525582,1203.45,0.00015311,2]
[366201490,1750114525793,1203.45,0.00015315,2]
[366201491,1750114526017,1203.45,0.00015319,2]
[366201492,1750114526235,1203.45,0.00015323,2]
[366201493,1750114526435,1203.45,0.00015327,2]
[366201494,1750114526628,1203.45,0.00015331,2]
[366201495,1750114526866,1203.45,0.00015335,2]
[366201496,1750114527510,1203.45,0.00015339,2]
[366201497,1750114554128,165.34,0.00015263,2]
[366201499,1750114817427,29746.01,0.00015121,2]
[366201500,1750114899192,2709.11,0.00015093,2]
[366201501,1750114979949,666.0,0.00015106,2]
[366201503,1750115432820,-167.2,0.00015494,2]
[366201504,1750115432834,-189.97718468,0.00015638,2]
[366201505,1750115432856,-60.02281532,0.00015638,2]
[366201506,1750115432866,-174.63835223,0.00015782,2]
[366201507,1750115432884,-272.97258562,0.00015875,4]
[366201508,1750115432897,-327.02741438,0.00015875,4]
[366201509,1750115432906,-765.0775433,0.00015882,2]
[366201510,1750115432916,-720.4665263,0.00015883,2]
[366201511,1750115432934,-44.61101699,0.00015883,2]
[366201512,1750115432944,-151.0,0.00015899,2]
[366201513,1750115432954,-437.5533,0.000159,2]
[366201514,1750115432964,-2118.68995277,0.00015928,2]
[366201515,1750115432973,-1200.0,0.00015971,2]
[366201516,1750115432983,-151.0,0.00015971,2]
[366201517,1750115432993,-300.0,0.00015972,2]
[366201518,1750115433003,-300.0,0.00015972,2]
[366201519,1750115433012,-1957.856,0.00015973,2]
[366201520,1750115433022,-207.4,0.00015973,2]
[366201521,1750115433034,-2500.0,0.0001598,2]
[366201522,1750115433046,-659.70218363,0.0001598,2]
[366201523,1750115433056,-172.4260589,0.00015981,2]
[366201524,1750115433067,-975.72931778,0.00015981,2]
[366201525,1750115433078,-5272.62539467,0.00015981,2]
[366201526,1750115433088,-211.0,0.00015981,2]
[366201527,1750115433099,-1000.0,0.00015982,2]
[366201528,1750115433108,-2544.6991,0.00015983,2]
[366201530,1750115433118,-300.0,0.00015989,2]
[366201531,1750115433129,-511.6201195,0.0001599,2]
[366201532,1750115433139,-151.0,0.0001599,2]
[366201533,1750115433149,-785.90071411,0.0001599,2]
[366201534,1750115433159,-500.0,0.0001599,2]
[366201535,1750115433169,-500.0,0.0001599,2]
[366201536,1750115433179,-500.0,0.0001599,2]
[366201538,1750115433189,-257.55087643,0.0001599,2]
[366201539,1750115433199,-500.0,0.0001599,2]
[366201540,1750115433209,-500.0,0.0001599,2]
[366201541,1750115433219,-500.0,0.0001599,2]
[366201542,1750115433229,-500.0,0.0001599,2]
[366201543,1750115433239,-500.0,0.0001599,2]
[366201544,1750115433249,-500.0,0.0001599,2]
[366201545,1750115433260,-500.0,0.0001599,2]
[366201546,1750115433271,-180.10687711,0.0001599,2]
[366201547,1750115433282,-623.66117744,0.0001599,2]
[366201548,1750115433293,-151.0,0.0001599,2]
[366201549,1750115433303,-151.0,0.0001599,2]
[366201550,1750115433314,-151.0,0.0001599,2]
[366201551,1750115433324,-151.0,0.0001599,2]
[366201552,1750115433336,-237.418792,0.00015996,2]
[366201553,1750115433347,-1000.0,0.00015999,2]
[366201554,1750115433357,-411.5,0.00016,2]
[366201555,1750115433367,-98272.94911867,0.00016,2]
[366201556,1750115433381,-51047.56333532,0.00016,2]
[366201557,1750115433399,-1679.48754601,0.00016,2]
[366201558,1750115433409,-91.29991413,0.00016028,2]
[366201559,1750115433422,-1938.99675787,0.00016028,2]
[366201560,1750115433432,-2118.6899527,0.00016036,2]
[366201561,1750115433446,-2345.47240062,0.0001607,2]
[366201562,1750115433463,-500.95759938,0.0001607,2]
[366201563,1750115433474,-490.0,0.00016079,2]
[366201564,1750115433484,-579.66,0.00016079,2]
[366201565,1750115433494,-490.0,0.00016079,2]
[366201566,1750115433504,-139.85237662,0.0001608,2]
[366201567,1750115433516,-348.64762338,0.0001608,2]
[366201568,1750115433527,-494.39857554,0.0001608,2]
[366201569,1750115433537,-490.0,0.0001608,2]
[366201570,1750115433548,-490.0,0.0001608,2]
[366201571,1750115433559,-490.0,0.0001608,2]
[366201572,1750115433569,-490.0,0.0001608,2]
[366201573,1750115433579,-490.0,0.0001608,2]
[366201574,1750115433588,-490.0,0.0001608,2]
[366201575,1750115433598,-522.16,0.0001608,2]
[366201576,1750115433608,-490.0,0.0001608,2]
[366201577,1750115433618,-492.83176763,0.0001608,2]
[366201578,1750115433628,-490.0,0.0001608,2]
[366201579,1750115433638,-490.0,0.0001608,2]
[366201580,1750115433648,-490.0,0.0001608,2]
[366201581,1750115433658,-490.0,0.0001608,2]
[366201582,1750115433669,-490.0,0.0001608,2]
[366201583,1750115433679,-490.0,0.0001608,2]
[366201584,1750115433689,-490.0,0.0001608,2]
[366201585,1750115433699,-498.37894836,0.0001608,2]
[366201586,1750115433709,-499.54203924,0.0001608,2]
[366201587,1750115433720,-490.0,0.0001608,2]
[366201588,1750115433730,-491.01707738,0.0001608,2]
[366201589,1750115433740,-490.0,0.0001608,2]
[366201590,1750115433750,-539.75,0.0001608,2]
[366201591,1750115433760,-323.47,0.0001608,2]
[366201592,1750115433770,-495.1603586,0.0001608,2]
[366201593,1750115433782,-490.0,0.0001608,2]
[366201594,1750115433794,-629.21,0.0001608,2]
[366201595,1750115433804,-490.0,0.0001608,2]
[366201596,1750115433815,-490.0,0.0001608,2]
[366201597,1750115433825,-490.0,0.0001608,2]
[366201598,1750115433836,-490.0,0.0001608,2]
[366201599,1750115433847,-498.25,0.0001608,2]
[366201600,1750115433857,-490.0,0.0001608,2]
[366201601,1750115433868,-490.0,0.0001608,2]
[366201602,1750115433879,-490.0,0.0001608,2]
[366201603,1750115433889,-620.35,0.0001608,2]
[366201604,1750115433899,-555.9,0.0001608,2]
[366201605,1750115433910,-190.24254091,0.0001608,2]
[366201606,1750115433920,-490.0,0.0001608,2]
[366201607,1750115433930,-598.48,0.0001608,2]
[366201608,1750115433940,-490.0,0.0001608,2]
[366201609,1750115433950,-490.0,0.0001608,2]
[366201610,1750115433960,-490.0,0.0001608,2]
[366201611,1750115433970,-490.0,0.0001608,2]
[366201612,1750115433980,-490.0,0.0001608,2]
[366201613,1750115433991,-315.47929668,0.0001608,2]
[366201614,1750115434000,-490.0,0.0001608,2]
[366201615,1750115434011,-231.35292443,0.0001608,2]
[366201616,1750115434021,-490.0,0.0001608,2]
[366201617,1750115434035,-490.0,0.0001608,2]
[366201618,1750115434045,-490.0,0.0001608,2]
[366201619,1750115434055,-3368.42,0.0001608,2]
[366201620,1750115434065,-490.0,0.0001608,2]
[366201621,1750115434075,-494.68,0.0001608,2]
[366201622,1750115434085,-490.0,0.0001608,2]
[366201623,1750115434095,-490.0,0.0001608,2]
[366201624,1750115434105,-573.04863393,0.0001608,2]
[366201625,1750115434115,-1021.24,0.0001608,2]
[366201626,1750115434126,-490.0,0.0001608,2]
[366201627,1750115434136,-490.0,0.0001608,2]
[366201628,1750115434147,-490.0,0.0001608,2]
[366201629,1750115434157,-490.0,0.0001608,2]
[366201630,1750115434167,-1871.76,0.0001608,2]
[366201631,1750115434178,-490.0,0.0001608,2]
[366201632,1750115434188,-490.0,0.0001608,2]
[366201633,1750115434197,-575.76,0.0001608,2]
[366201634,1750115434208,-1328.88,0.0001608,2]
[366201635,1750115434217,-490.0,0.0001608,2]
[366201636,1750115434227,-1249.47,0.0001608,2]
[366201637,1750115434237,-490.0,0.0001608,2]
[366201638,1750115434247,-490.0,0.0001608,2]
[366201639,1750115434257,-490.0,0.0001608,2]
[366201640,1750115434268,-303.12168633,0.0001608,2]
[366201641,1750115434279,-490.0,0.0001608,2]
[366201642,1750115434289,-490.0,0.0001608,2]
[366201643,1750115434300,-591.68,0.0001608,2]
[366201644,1750115434310,-490.0,0.0001608,2]
[366201645,1750115434321,-490.0,0.0001608,2]